[Event "Caplin Hastings Masters 2023-24"]
[Site "Hastings"]
[Date "2023.12.29"]
[Round "2.9"]
[White "Sengupta, Deep"]
[Black "Villiers, Thomas"]
[Result "1-0"]
[ECO "D02"]
[WhiteElo "2501"]
[BlackElo "2230"]
[Annotator "ChessBase"]
[PlyCount "83"]
[EventDate "2023.12.18"]
[EventType "swiss"]
[EventCountry "ENG"]
[SourceTitle "playchess.com"]
[Source "ChessBase"]
[SourceQuality "1"]
[TimeControl "40/6000+30:3000+30"]

1. d4 {[%emt 0:00:07]} d5 {[%emt 0:03:09]} 2. Bf4 {[%emt 0:00:29]} Nf6 {[%emt 0:03:52]} 3. e3 {[%emt 0:00:08]} e6 {[%emt 0:00:36]} 4. Nf3 {[%emt 0:00:12]} Bd6 {[%emt 0:00:40]} 5. Ne5 {[%emt 0:00:16]} O-O {[%emt 0:00:32]} 6. Nd2 {[%emt 0:00:05]} c5 {[%emt 0:00:47]} 7. c3 {[%emt 0:00:05]} Nc6 {[%emt 0:00:19]} 8. Bd3 {[%emt 0:01:28]} Qc7 {[%emt 0:01:14]} 9. Ndf3 {[%emt 0:01:42]} Ne4 {[%emt 0:05:15]} 10. O-O {[%emt 0:04:20]} f6 {[%emt 0:02:12]} 11. Nxc6 {[%emt 0:00:38]} Bxf4 {[%emt 0:00:57]} 12. exf4 {[%emt 0:02:31]} bxc6 {[%emt 0:07:28]} 13. Qc1 {[%emt 0:00:10]} c4 {[%emt 0:08:19]} 14. Bc2 {[%emt 0:03:39]} Rb8 {[%emt 0:04:09]} 15. Re1 {[%emt 0:01:02]} Nd6 {[%emt 0:03:25]} 16. Re3 {[%emt 0:07:23]} Nf7 {[%emt 0:07:40]} 17. g3 {[%emt 0:01:58]} Re8 {[%emt 0:01:26]} 18. Qb1 {[%emt 0:04:48]} h6 {[%emt 0:01:58]} 19. Bh7+ {[%emt 0:02:02]} Kh8 {[%emt 0:04:40]} 20. Bg6 {[%emt 0:04:26]} Rf8 {[%emt 0:02:25]} 21. Nh4 {[%emt 0:00:56]} Bd7 {[%emt 0:01:22]} 22. Qc2 {[%emt 0:06:28]} Nd8 {[%emt 0:06:57]} 23. Rae1 {[%emt 0:04:15]} c5 {[%emt 0:02:04]} 24. f5 {[%emt 0:18:39]} cxd4 {[%emt 0:03:21]} 25. cxd4 {[%emt 0:00:14]} Qb6 {[%emt 0:07:49]} 26. Qd1 {[%emt 0:02:11]} Qxb2 {[%emt 0:03:12]} 27. fxe6 {[%emt 0:00:13]} Bxe6 {[%emt 0:00:28]} 28. Rxe6 {[%emt 0:01:45]} Nxe6 {[%emt 0:00:08]} 29. Rxe6 {[%emt 0:00:04]} Qxa2 {[%emt 0:02:06]} 30. Bf5 {[%emt 0:02:06]} Rfe8 {[%emt 0:04:49]} 31. Qh5 {[%emt 0:07:28]} Rxe6 {[%emt 0:07:29]} 32. Ng6+ {[%emt 0:00:42]} Kg8 {[%emt 0:00:06]} 33. Bxe6+ {[%emt 0:00:13]} Kh7 {[%emt 0:00:04]} 34. Bf5 {[%emt 0:00:13]} Kg8 {[%emt 0:03:21]} 35. Qf3 {[%emt 0:00:53]} Qa1+ {[%emt 0:01:09]} 36. Kg2 {[%emt 0:00:05]} Qxd4 {[%emt 0:00:07]} 37. Ne7+ {[%emt 0:00:07]} Kh8 {[%emt 0:00:28]} 38. Nc6 {[%emt 0:00:26]} Qb6 {[%emt 0:00:29]} 39. Nxb8 {[%emt 0:00:05]} Qxb8 {[%emt 0:00:06]} 40. Qxd5 {[%emt 0:00:04]} c3 {[%emt 0:01:11]} 41. Qc6 {[%emt 0:50:06]} Qc7 {[%emt 0:52:55]} 42. Qe8# {[%emt 0:00:49]} 1-0

[Event "Caplin Hastings Masters 2023-24"]
[Site "Hastings"]
[Date "2023.12.29"]
[Round "2.10"]
[White "Ismail, Mohammed Aayan"]
[Black "Sulskis, Sarunas"]
[Result "0-1"]
[ECO "A09"]
[WhiteElo "2115"]
[BlackElo "2490"]
[Annotator "ChessBase"]
[PlyCount "58"]
[EventDate "2023.12.18"]
[EventType "swiss"]
[EventCountry "ENG"]
[SourceTitle "playchess.com"]
[Source "ChessBase"]
[SourceQuality "1"]
[TimeControl "40/6000+30:3000+30"]

1. Nf3 {[%emt 0:02:59]} d5 {[%emt 0:00:22]} 2. c4 {[%emt 0:00:15]} d4 {[%emt 0:00:07]} 3. e3 {[%emt 0:00:20]} Nc6 {[%emt 0:03:24]} 4. b4 {[%emt 0:06:25]} Nxb4 {[%emt 0:08:08]} 5. Qa4+ {[%emt 0:09:12]} Nc6 {[%emt 0:01:02]} 6. exd4 {[%emt 0:01:44]} e6 {[%emt 0:01:15]} 7. Nc3 {[%emt 0:01:38]} Nf6 {[%emt 0:02:00]} 8. d5 {[%emt 0:13:33]} exd5 {[%emt 0:02:24]} 9. cxd5 {[%emt 0:00:05]} Nxd5 {[%emt 0:00:10]} 10. Nxd5 {[%emt 0:05:49]} Qxd5 {[%emt 0:00:08]} 11. Bc4 {[%emt 0:00:10]} Qf5 {[%emt 0:07:39]} 12. Bb2 {[%emt 0:07:57]} Bd6 {[%emt 0:05:52]} 13. Nd4 {[%emt 0:31:52]} Qe5+ {[%emt 0:03:52]} 14. Kf1 {[%emt 0:01:19]} O-O {[%emt 0:01:20]} 15. Re1 {[%emt 0:01:54]} Qa5 {[%emt 0:05:58]} 16. Qb3 {[%emt 0:02:28]} Ne5 {[%emt 0:02:35]} 17. Bd5 {[%emt 0:06:00]} Qxd2 {[%emt 0:08:05]} 18. Be4 {[%emt 0:03:00]} Bd7 {[%emt 0:17:30]} 19. Bc3 {[%emt 0:01:08]} Qf4 {[%emt 0:02:45]} 20. Qc2 {[%emt 0:01:06]} Qh4 {[%emt 0:04:12]} 21. g3 {[%emt 0:05:24]} Qh5 {[%emt 0:02:11]} 22. f4 {[%emt 0:03:05]} Nc4 {[%emt 0:04:56]} 23. Nf3 {[%emt 0:01:46]} Rae8 {[%emt 0:04:50]} 24. Ng5 {[%emt 0:01:52]} h6 {[%emt 0:02:41]} 25. h4 {[%emt 0:01:26]} hxg5 {[%emt 0:00:36]} 26. hxg5 {[%emt 0:00:22]} Bh3+ {[%emt 0:00:44]} 27. Rxh3 {[%emt 0:00:08]} Qxh3+ {[%emt 0:00:10]} 28. Kf2 {[%emt 0:00:42]} Qh2+ {[%emt 0:00:45]} 29. Bg2 {[%emt 0:00:09]} Rxe1 {[%emt 0:00:20]} 0-1

[Event "Caplin Hastings Masters 2023-24"]
[Site "Hastings"]
[Date "2023.12.29"]
[Round "2.11"]
[White "Gasanov, Eldar"]
[Black "Juknis, Paulius"]
[Result "1-0"]
[ECO "E71"]
[WhiteElo "2487"]
[BlackElo "2148"]
[Annotator "ChessBase"]
[PlyCount "115"]
[EventDate "2023.12.18"]
[EventType "swiss"]
[EventCountry "ENG"]
[SourceTitle "playchess.com"]
[Source "ChessBase"]
[SourceQuality "1"]
[TimeControl "40/6000+30:3000+30"]

1. d4 {[%emt 0:01:14]} Nf6 {[%emt 0:00:24]} 2. c4 {[%emt 0:00:17]} g6 {[%emt 0:00:21]} 3. Nc3 {[%emt 0:00:25]} Bg7 {[%emt 0:00:24]} 4. e4 {[%emt 0:00:18]} d6 {[%emt 0:00:14]} 5. h3 {[%emt 0:01:07]} O-O {[%emt 0:01:05]} 6. Be3 {[%emt 0:00:59]} Nc6 {[%emt 0:00:57]} 7. d5 {[%emt 0:00:37]} Ne5 {[%emt 0:00:17]} 8. f4 {[%emt 0:00:25]} Ned7 {[%emt 0:00:16]} 9. Qc2 {[%emt 0:00:09]} e5 {[%emt 0:06:24]} 10. dxe6 {[%emt 0:04:20]} fxe6 {[%emt 0:00:20]} 11. g4 {[%emt 0:00:05]} b6 {[%emt 0:09:06]} 12. Bg2 {[%emt 0:01:14]} Ba6 {[%emt 0:04:14]} 13. b3 {[%emt 0:03:47]} Nc5 {[%emt 0:06:09]} 14. Rd1 {[%emt 0:05:50]} Bb7 {[%emt 0:06:56]} 15. Nge2 {[%emt 0:02:14]} a5 {[%emt 0:17:46]} 16. O-O {[%emt 0:03:04]} Nfd7 {[%emt 0:06:51]} 17. Kh2 {[%emt 0:12:01]} Qe7 {[%emt 0:03:03]} 18. Ng3 {[%emt 0:04:50]} Rae8 {[%emt 0:05:46]} 19. g5 {[%emt 0:05:11]} Qd8 {[%emt 0:07:37]} 20. h4 {[%emt 0:04:18]} Qa8 {[%emt 0:05:52]} 21. Nb5 {[%emt 0:02:37]} Qb8 {[%emt 0:00:09]} 22. h5 {[%emt 0:03:01]} Rf7 {[%emt 0:10:13]} 23. Rf2 {[%emt 0:08:13]} gxh5 {[%emt 0:05:09]} 24. Nxh5 {[%emt 0:01:11]} Bh8 {[%emt 0:00:42]} 25. Bc1 {[%emt 0:10:42]} Qd8 {[%emt 0:02:16]} 26. Rg1 {[%emt 0:06:02]} Nf8 {[%emt 0:01:28]} 27. Rd1 {[%emt 0:11:11]} Qa8 {[%emt 0:03:56]} 28. Re2 {[%emt 0:03:23]} Ng6 {[%emt 0:00:45]} 29. Rf1 {[%emt 0:00:38]} Qd8 {[%emt 0:02:13]} 30. Ref2 {[%emt 0:05:37]} Qa8 {[%emt 0:01:22]} 31. Re1 {[%emt 0:02:43]} Qd8 {[%emt 0:00:08]} 32. Bd2 {[%emt 0:01:21]} Bc6 {[%emt 0:01:00]} 33. Ref1 {[%emt 0:01:08]} Qa8 {[%emt 0:00:27]} 34. Re2 {[%emt 0:01:54]} Qd8 {[%emt 0:01:07]} 35. Kg1 {[%emt 0:01:07]} Bb7 {[%emt 0:01:28]} 36. Be3 {[%emt 0:01:29]} Qa8 {[%emt 0:00:53]} 37. Bd2 {[%emt 0:01:28]} Qd8 {[%emt 0:00:04]} 38. Bc1 {[%emt 0:01:01]} Bc6 {[%emt 0:00:54]} 39. Na7 {[%emt 0:01:34]} Bb7 {[%emt 0:00:04]} 40. Nb5 {[%emt 0:00:05]} Bc6 {[%emt 0:01:01]} 41. Rfe1 {[%emt 0:06:22]} Ref8 {[%emt 0:11:57]} 42. Rf1 {[%emt 0:03:42]} Bb7 {[%emt 0:08:56]} 43. Ree1 {[%emt 0:08:15]} Qa8 {[%emt 0:09:17]} 44. a3 {[%emt 0:05:16]} Bc6 {[%emt 0:08:07]} 45. Bh1 {[%emt 0:08:38]} Bb7 {[%emt 0:02:47]} 46. Bd2 {[%emt 0:06:41]} Bc6 {[%emt 0:06:25]} 47. Qb1 {[%emt 0:03:00]} Qd8 {[%emt 0:01:09]} 48. b4 {[%emt 0:01:00]} axb4 {[%emt 0:02:38]} 49. axb4 {[%emt 0:00:04]} Na4 {[%emt 0:00:20]} 50. Qc2 {[%emt 0:01:32]} Qa8 {[%emt 0:03:39]} 51. Rf3 {[%emt 0:05:06]} Nb2 {[%emt 0:00:44]} 52. Ra3 {[%emt 0:00:52]} Qd8 {[%emt 0:00:15]} 53. Nf6+ {[%emt 0:05:29]} Rxf6 {[%emt 0:00:29]} 54. gxf6 {[%emt 0:00:07]} Qxf6 {[%emt 0:00:05]} 55. e5 {[%emt 0:00:37]} Nxe5 {[%emt 0:00:14]} 56. Rg3+ {[%emt 0:00:24]} Bg7 {[%emt 0:00:35]} 57. Bxc6 {[%emt 0:00:22]} Nxc6 {[%emt 0:00:46]} 58. Bc3 {[%emt 0:00:29]} 1-0

[Event "Caplin Hastings Masters 2023-24"]
[Site "Hastings"]
[Date "2023.12.29"]
[Round "2.12"]
[White "Brown, Thomas"]
[Black "Wadsworth, Matthew J"]
[Result "0-1"]
[ECO "E24"]
[WhiteElo "2095"]
[BlackElo "2448"]
[Annotator "ChessBase"]
[PlyCount "76"]
[EventDate "2023.12.18"]
[EventType "swiss"]
[EventCountry "ENG"]
[SourceTitle "playchess.com"]
[Source "ChessBase"]
[SourceQuality "1"]
[TimeControl "40/6000+30:3000+30"]

1. d4 {[%emt 0:00:03]} Nf6 {[%emt 0:00:13]} 2. c4 {[%emt 0:00:06]} e6 {[%emt 0:00:04]} 3. Nc3 {[%emt 0:00:05]} Bb4 {[%emt 0:00:04]} 4. a3 {[%emt 0:00:08]} Bxc3+ {[%emt 0:01:04]} 5. bxc3 {[%emt 0:00:07]} b6 {[%emt 0:00:06]} 6. f3 {[%emt 0:00:06]} Nc6 {[%emt 0:02:06]} 7. e4 {[%emt 0:00:19]} Na5 {[%emt 0:04:33]} 8. Bd3 {[%emt 0:03:41]} Ba6 {[%emt 0:01:32]} 9. Qe2 {[%emt 0:02:14]} c5 {[%emt 0:01:21]} 10. f4 {[%emt 0:11:18]} cxd4 {[%emt 0:10:24]} 11. cxd4 {[%emt 0:09:09]} Qc7 {[%emt 0:01:52]} 12. Nf3 {[%emt 0:25:13]} Bxc4 {[%emt 0:03:56]} 13. O-O {[%emt 0:00:52]} Bxd3 {[%emt 0:03:51]} 14. Qxd3 {[%emt 0:00:08]} Qc4 {[%emt 0:03:12]} 15. Qe3 {[%emt 0:03:53]} d5 {[%emt 0:06:42]} 16. e5 {[%emt 0:12:51]} Ne4 {[%emt 0:01:09]} 17. Bd2 {[%emt 0:01:06]} Nb3 {[%emt 0:08:51]} 18. Rab1 {[%emt 0:00:23]} Nbxd2 {[%emt 0:01:02]} 19. Nxd2 {[%emt 0:00:19]} Qc3 {[%emt 0:00:06]} 20. Qxc3 {[%emt 0:01:42]} Nxc3 {[%emt 0:02:04]} 21. Rb4 {[%emt 0:01:33]} Rc8 {[%emt 0:04:18]} 22. Kf2 {[%emt 0:03:01]} Kd7 {[%emt 0:02:16]} 23. a4 {[%emt 0:04:20]} Rc6 {[%emt 0:01:50]} 24. Ra1 {[%emt 0:01:12]} Rhc8 {[%emt 0:04:01]} 25. Rb3 {[%emt 0:04:24]} a6 {[%emt 0:01:37]} 26. Rba3 {[%emt 0:05:31]} f5 {[%emt 0:05:12]} 27. Ke3 {[%emt 0:01:49]} Ne4 {[%emt 0:02:18]} 28. Nxe4 {[%emt 0:03:07]} dxe4 {[%emt 0:00:20]} 29. Rb1 {[%emt 0:06:57]} Rc3+ {[%emt 0:01:01]} 30. Rxc3 {[%emt 0:00:07]} Rxc3+ {[%emt 0:00:05]} 31. Kd2 {[%emt 0:00:33]} Rd3+ {[%emt 0:03:24]} 32. Ke2 {[%emt 0:00:09]} Kc6 {[%emt 0:02:44]} 33. Rc1+ {[%emt 0:00:36]} Kb7 {[%emt 0:00:52]} 34. Rc4 {[%emt 0:00:32]} h5 {[%emt 0:01:03]} 35. Kf2 {[%emt 0:01:25]} h4 {[%emt 0:11:57]} 36. h3 {[%emt 0:00:21]} Rd2+ {[%emt 0:00:55]} 37. Kg1 {[%emt 0:05:55]} e3 {[%emt 0:00:19]} 38. Kf1 {[%emt 0:00:19]} Rf2+ {[%emt 0:00:47]} 0-1

[Event "Caplin Hastings Masters 2023-24"]
[Site "Hastings"]
[Date "2023.12.29"]
[Round "2.13"]
[White "Gormally, Daniel W"]
[Black "Southcott-Moyers, Indy"]
[Result "1/2-1/2"]
[ECO "D37"]
[WhiteElo "2442"]
[BlackElo "2123"]
[Annotator "ChessBase"]
[PlyCount "111"]
[EventDate "2023.12.18"]
[EventType "swiss"]
[EventCountry "ENG"]
[SourceTitle "playchess.com"]
[Source "ChessBase"]
[SourceQuality "1"]
[TimeControl "40/6000+30:3000+30"]

1. d4 {[%emt 0:00:04]} d5 {[%emt 0:00:06]} 2. c4 {[%emt 0:00:08]} e6 {[%emt 0:00:05]} 3. Nf3 {[%emt 0:00:33]} Nf6 {[%emt 0:00:05]} 4. Nc3 {[%emt 0:00:43]} a6 {[%emt 0:01:02]} 5. cxd5 {[%emt 0:01:05]} exd5 {[%emt 0:00:07]} 6. Bg5 {[%emt 0:00:07]} Be6 {[%emt 0:02:00]} 7. e3 {[%emt 0:00:31]} Nbd7 {[%emt 0:01:05]} 8. Bd3 {[%emt 0:00:07]} Bd6 {[%emt 0:01:13]} 9. O-O {[%emt 0:00:30]} c6 {[%emt 0:01:47]} 10. Nd2 {[%emt 0:05:26]} Qc7 {[%emt 0:11:36]} 11. f4 {[%emt 0:00:30]} h6 {[%emt 0:05:55]} 12. Bh4 {[%emt 0:03:11]} Bg4 {[%emt 0:05:34]} 13. Qc2 {[%emt 0:05:10]} g5 {[%emt 0:07:05]} 14. Bg3 {[%emt 0:00:05]} O-O-O {[%emt 0:03:10]} 15. b4 {[%emt 0:10:57]} Nh5 {[%emt 0:12:58]} 16. Bf5 {[%emt 0:01:05]} Bxf5 {[%emt 0:08:19]} 17. Qxf5 {[%emt 0:00:08]} Nxg3 {[%emt 0:01:03]} 18. hxg3 {[%emt 0:00:07]} Kb8 {[%emt 0:00:23]} 19. a3 {[%emt 0:03:56]} Nb6 {[%emt 0:05:05]} 20. e4 {[%emt 0:08:35]} dxe4 {[%emt 0:04:49]} 21. Ndxe4 {[%emt 0:00:20]} gxf4 {[%emt 0:01:51]} 22. gxf4 {[%emt 0:01:51]} Qd7 {[%emt 0:03:45]} 23. Qxd7 {[%emt 0:04:03]} Rxd7 {[%emt 0:01:08]} 24. Nc5 {[%emt 0:09:14]} Bxc5 {[%emt 0:05:35]} 25. dxc5 {[%emt 0:01:55]} Nc4 {[%emt 0:00:31]} 26. a4 {[%emt 0:03:03]} Ne3 {[%emt 0:03:20]} 27. Rf3 {[%emt 0:05:21]} Nc2 {[%emt 0:02:56]} 28. Rb1 {[%emt 0:00:42]} Re8 {[%emt 0:02:33]} 29. b5 {[%emt 0:01:57]} axb5 {[%emt 0:08:02]} 30. axb5 {[%emt 0:00:05]} cxb5 {[%emt 0:04:08]} 31. Nxb5 {[%emt 0:02:03]} Nd4 {[%emt 0:02:23]} 32. Nxd4 {[%emt 0:04:15]} Rxd4 {[%emt 0:00:06]} 33. c6 {[%emt 0:00:47]} Re7 {[%emt 0:01:28]} 34. Kh2 {[%emt 0:06:02]} Rc4 {[%emt 0:02:48]} 35. cxb7 {[%emt 0:00:20]} Rxb7 {[%emt 0:01:18]} 36. Rxb7+ {[%emt 0:00:13]} Kxb7 {[%emt 0:00:04]} 37. Kg3 {[%emt 0:00:25]} Kc6 {[%emt 0:00:43]} 38. Rd3 {[%emt 0:04:29]} h5 {[%emt 0:02:01]} 39. Rd2 {[%emt 0:04:45]} Rb4 {[%emt 0:00:38]} 40. Kf3 {[%emt 0:01:44]} Ra4 {[%emt 0:00:50]} 41. g3 {[%emt 0:50:31]} Ra5 {[%emt 0:07:32]} 42. Rd8 {[%emt 0:00:00]} Rd5 {[%emt 0:10:43]} 43. Rf8 {[%emt 0:00:00]} f5 {[%emt 0:01:21]} 44. Kg2 {[%emt 0:00:00]} Kd7 {[%emt 0:00:39]} 45. Kh3 {[%emt 0:00:00]} Ke7 {[%emt 0:02:02]} 46. Rh8 {[%emt 0:00:00]} Kf6 {[%emt 0:01:33]} 47. Kh4 {[%emt 0:00:00]} Rd3 {[%emt 0:02:45]} 48. Rh6+ {[%emt 0:00:00]} Kg7 {[%emt 0:00:46]} 49. Rxh5 {[%emt 0:00:00]} Kg6 {[%emt 0:01:03]} 50. Rg5+ {[%emt 0:00:00]} Kf6 {[%emt 0:00:06]} 51. Kh5 {[%emt 0:00:00]} Rc3 {[%emt 0:00:34]} 52. Kh6 {[%emt 0:00:00]} Rb3 {[%emt 0:04:15]} 53. Rg8 {[%emt 0:00:00]} Kf7 {[%emt 0:01:27]} 54. Rg6 {[%emt 0:00:00]} Rc3 {[%emt 0:00:20]} 55. Kh5 {[%emt 0:00:00]} Rb3 {[%emt 0:00:22]} 56. Rg5 {[%emt 0:00:00]} 1/2-1/2

[Event "Caplin Hastings Masters 2023-24"]
[Site "Hastings"]
[Date "2023.12.29"]
[Round "2.14"]
[White "Gimenez Menchon, Cesar"]
[Black "Royal, Shreyas"]
[Result "0-1"]
[ECO "B22"]
[WhiteElo "2088"]
[BlackElo "2438"]
[Annotator "ChessBase"]
[PlyCount "82"]
[EventDate "2023.12.18"]
[EventType "swiss"]
[EventCountry "ENG"]
[SourceTitle "playchess.com"]
[Source "ChessBase"]
[SourceQuality "1"]
[TimeControl "40/6000+30:3000+30"]

1. e4 {[%emt 0:00:03]} c5 {[%emt 0:00:09]} 2. c3 {[%emt 0:00:38]} Nf6 {[%emt 0:00:24]} 3. e5 {[%emt 0:00:08]} Nd5 {[%emt 0:00:05]} 4. Nf3 {[%emt 0:00:14]} d6 {[%emt 0:00:20]} 5. Bb5+ {[%emt 0:00:38]} Bd7 {[%emt 0:03:40]} 6. Bc4 {[%emt 0:00:11]} Nb6 {[%emt 0:07:00]} 7. Bxf7+ {[%emt 0:09:54]} Kxf7 {[%emt 0:00:06]} 8. e6+ {[%emt 0:00:07]} Kg8 {[%emt 0:06:58]} 9. exd7 {[%emt 0:02:26]} N8xd7 {[%emt 0:00:06]} 10. a4 {[%emt 0:06:38]} Nf6 {[%emt 0:09:42]} 11. a5 {[%emt 0:01:17]} Nbd5 {[%emt 0:02:05]} 12. Qb3 {[%emt 0:03:46]} Qc8 {[%emt 0:02:25]} 13. O-O {[%emt 0:02:30]} c4 {[%emt 0:00:38]} 14. Qa2 {[%emt 0:08:14]} Nf4 {[%emt 0:15:01]} 15. d4 {[%emt 0:00:32]} Nxg2 {[%emt 0:00:07]} 16. Kh1 {[%emt 0:19:25]} d5 {[%emt 0:04:41]} 17. Rg1 {[%emt 0:09:10]} Qf5 {[%emt 0:00:23]} 18. Nbd2 {[%emt 0:08:06]} Nf4 {[%emt 0:00:08]} 19. Rg5 {[%emt 0:04:50]} Qd3 {[%emt 0:02:42]} 20. Ne5 {[%emt 0:01:01]} Qe2 {[%emt 0:00:10]} 21. Ndxc4 {[%emt 0:03:32]} Nh3 {[%emt 0:00:49]} 22. Be3 {[%emt 0:05:02]} Nxg5 {[%emt 0:00:06]} 23. Bxg5 {[%emt 0:00:42]} dxc4 {[%emt 0:00:25]} 24. Kg2 {[%emt 0:10:13]} Rc8 {[%emt 0:00:17]} 25. Qa4 {[%emt 0:02:50]} Qe4+ {[%emt 0:00:46]} 26. f3 {[%emt 0:00:15]} Qd5 {[%emt 0:00:29]} 27. Rd1 {[%emt 0:07:09]} e6 {[%emt 0:00:29]} 28. b3 {[%emt 0:00:28]} cxb3 {[%emt 0:01:31]} 29. c4 {[%emt 0:00:03]} Qd6 {[%emt 0:00:15]} 30. Qxb3 {[%emt 0:01:05]} Rc7 {[%emt 0:03:01]} 31. f4 {[%emt 0:01:39]} Be7 {[%emt 0:01:29]} 32. f5 {[%emt 0:01:07]} Nd7 {[%emt 0:09:14]} 33. Bf4 {[%emt 0:00:29]} Bf6 {[%emt 0:05:36]} 34. fxe6 {[%emt 0:02:17]} Nxe5 {[%emt 0:05:23]} 35. c5 {[%emt 0:00:03]} Qc6+ {[%emt 0:01:11]} 36. Kh3 {[%emt 0:00:19]} h6 {[%emt 0:01:17]} 37. e7+ {[%emt 0:00:39]} Kh7 {[%emt 0:00:08]} 38. Qc2+ {[%emt 0:00:31]} g6 {[%emt 0:00:08]} 39. Rf1 {[%emt 0:01:13]} Rxe7 {[%emt 0:00:22]} 40. dxe5 {[%emt 0:00:16]} Bxe5 {[%emt 0:00:07]} 41. Bxe5 {[%emt 0:50:34]} Qe6+ {[%emt 0:50:04]} 0-1

[Event "Caplin Hastings Masters 2023-24"]
[Site "Hastings"]
[Date "2023.12.29"]
[Round "2.15"]
[White "Willow, Jonah B"]
[Black "Bai, Xue"]
[Result "1-0"]
[ECO "C48"]
[WhiteElo "2427"]
[BlackElo "2099"]
[Annotator "ChessBase"]
[PlyCount "57"]
[EventDate "2023.12.18"]
[EventType "swiss"]
[EventCountry "ENG"]
[SourceTitle "playchess.com"]
[Source "ChessBase"]
[SourceQuality "1"]
[TimeControl "40/6000+30:3000+30"]

1. e4 {[%emt 0:00:06]} e5 {[%emt 0:00:06]} 2. Nf3 {[%emt 0:00:18]} Nc6 {[%emt 0:00:06]} 3. Nc3 {[%emt 0:00:29]} Nf6 {[%emt 0:00:13]} 4. Bb5 {[%emt 0:00:07]} Nd4 {[%emt 0:00:29]} 5. O-O {[%emt 0:00:39]} Nxb5 {[%emt 0:00:27]} 6. Nxb5 {[%emt 0:00:06]} d6 {[%emt 0:00:33]} 7. d4 {[%emt 0:00:18]} c6 {[%emt 0:01:27]} 8. dxe5 {[%emt 0:08:44]} Nxe4 {[%emt 0:01:47]} 9. Nxd6+ {[%emt 0:17:43]} Bxd6 {[%emt 0:06:35]} 10. Qd4 {[%emt 0:11:55]} Bf5 {[%emt 0:18:12]} 11. exd6 {[%emt 0:00:25]} Qxd6 {[%emt 0:00:36]} 12. Qxg7 {[%emt 0:06:43]} O-O-O {[%emt 0:03:19]} 13. Qe5 {[%emt 0:05:53]} Qxe5 {[%emt 0:03:26]} 14. Nxe5 {[%emt 0:00:06]} Nd6 {[%emt 0:00:30]} 15. Bg5 {[%emt 0:01:22]} Rde8 {[%emt 0:00:44]} 16. Rad1 {[%emt 0:05:28]} Rhg8 {[%emt 0:03:17]} 17. Bf4 {[%emt 0:04:05]} Re6 {[%emt 0:02:28]} 18. c4 {[%emt 0:10:04]} c5 {[%emt 0:12:51]} 19. Rd5 {[%emt 0:06:05]} b6 {[%emt 0:04:34]} 20. Nxf7 {[%emt 0:03:05]} Nxf7 {[%emt 0:02:44]} 21. Rxf5 {[%emt 0:00:05]} Nd8 {[%emt 0:00:05]} 22. Rd1 {[%emt 0:05:08]} Rge8 {[%emt 0:03:11]} 23. Be3 {[%emt 0:01:03]} Nc6 {[%emt 0:00:38]} 24. h3 {[%emt 0:01:21]} R8e7 {[%emt 0:01:50]} 25. Rfd5 {[%emt 0:01:32]} Ne5 {[%emt 0:01:52]} 26. b3 {[%emt 0:00:31]} Nc6 {[%emt 0:00:54]} 27. Kh2 {[%emt 0:01:02]} Nb4 {[%emt 0:00:36]} 28. Rd8+ {[%emt 0:00:10]} Kb7 {[%emt 0:00:10]} 29. Bg5 {[%emt 0:02:28]} 1-0

[Event "Caplin Hastings Masters 2023-24"]
[Site "Hastings"]
[Date "2023.12.29"]
[Round "2.16"]
[White "Evenshaug, Amadeus Hestvik"]
[Black "Gallagher, Joseph G."]
[Result "0-1"]
[ECO "B40"]
[WhiteElo "2041"]
[BlackElo "2427"]
[Annotator "ChessBase"]
[PlyCount "90"]
[EventDate "2023.12.18"]
[EventType "swiss"]
[EventCountry "ENG"]
[SourceTitle "playchess.com"]
[Source "ChessBase"]
[SourceQuality "1"]
[TimeControl "40/6000+30:3000+30"]

1. e4 {[%emt 0:00:48]} c5 {[%emt 0:01:00]} 2. Nf3 {[%emt 0:00:00]} e6 {[%emt 0:01:59]} 3. d4 {[%emt 0:00:18]} cxd4 {[%emt 0:00:07]} 4. Nxd4 {[%emt 0:00:05]} Nf6 {[%emt 0:03:14]} 5. Bd3 {[%emt 0:06:27]} Nc6 {[%emt 0:06:52]} 6. Nxc6 {[%emt 0:00:40]} bxc6 {[%emt 0:00:14]} 7. O-O {[%emt 0:00:38]} d5 {[%emt 0:03:01]} 8. e5 {[%emt 0:11:19]} Nd7 {[%emt 0:00:09]} 9. f4 {[%emt 0:00:16]} Be7 {[%emt 0:08:03]} 10. Be3 {[%emt 0:03:56]} g6 {[%emt 0:09:11]} 11. Nd2 {[%emt 0:04:32]} Bb7 {[%emt 0:05:49]} 12. c4 {[%emt 0:10:08]} O-O {[%emt 0:02:07]} 13. Nf3 {[%emt 0:19:04]} c5 {[%emt 0:08:27]} 14. cxd5 {[%emt 0:03:34]} Bxd5 {[%emt 0:04:56]} 15. b3 {[%emt 0:06:34]} Qc7 {[%emt 0:04:11]} 16. Qe2 {[%emt 0:07:22]} Qb7 {[%emt 0:06:43]} 17. Ba6 {[%emt 0:03:49]} Qb6 {[%emt 0:00:50]} 18. Bc4 {[%emt 0:07:26]} Rfd8 {[%emt 0:04:55]} 19. Rac1 {[%emt 0:03:14]} Bxc4 {[%emt 0:05:45]} 20. Qxc4 {[%emt 0:04:24]} Qc6 {[%emt 0:13:02]} 21. b4 {[%emt 0:06:37]} Nb6 {[%emt 0:04:35]} 22. Qa6 {[%emt 0:00:45]} c4 {[%emt 0:00:51]} 23. Bxb6 {[%emt 0:09:31]} axb6 {[%emt 0:01:27]} 24. Qxc4 {[%emt 0:00:04]} Qxc4 {[%emt 0:00:08]} 25. Rxc4 {[%emt 0:00:04]} Rxa2 {[%emt 0:00:05]} 26. Rb1 {[%emt 0:00:33]} b5 {[%emt 0:02:16]} 27. Rd4 {[%emt 0:00:05]} Rc8 {[%emt 0:00:53]} 28. Rd2 {[%emt 0:00:11]} Rxd2 {[%emt 0:03:17]} 29. Nxd2 {[%emt 0:00:05]} Rc2 {[%emt 0:00:05]} 30. Ne4 {[%emt 0:02:26]} Rc4 {[%emt 0:00:13]} 31. Nd6 {[%emt 0:00:30]} Rxf4 {[%emt 0:01:55]} 32. Nxb5 {[%emt 0:00:28]} Bxb4 {[%emt 0:00:19]} 33. g3 {[%emt 0:00:34]} Re4 {[%emt 0:00:12]} 34. Kg2 {[%emt 0:00:15]} Bf8 {[%emt 0:02:46]} 35. Nd6 {[%emt 0:00:46]} Rxe5 {[%emt 0:02:57]} 36. Rb8 {[%emt 0:00:05]} Re2+ {[%emt 0:00:31]} 37. Kh3 {[%emt 0:00:19]} h5 {[%emt 0:00:18]} 38. Ne8 {[%emt 0:00:19]} Bc5 {[%emt 0:01:54]} 39. Nf6+ {[%emt 0:01:06]} Kg7 {[%emt 0:00:07]} 40. Ne8+ {[%emt 0:00:13]} Kh6 {[%emt 0:00:18]} 41. Rb1 {[%emt 0:50:58]} g5 {[%emt 0:51:34]} 42. g4 {[%emt 0:00:00]} Re3+ {[%emt 0:00:00]} 43. Kg2 {[%emt 0:00:00]} hxg4 {[%emt 0:00:00]} 44. Nf6 {[%emt 0:00:00]} Re2+ {[%emt 0:00:00]} 45. Kg3 {[%emt 0:00:00]} Kg6 {[%emt 0:00:00]} 0-1